[Event "Late-Titled-Tuesday-Blitz-October-10-2023"]
[Site "Chess.com"]
[Date "2023.10.10"]
[Round "6"]
[White "JoakimVonAnd"]
[Black "WPWPWP-2015"]
[Result "0-1"]
[WhiteElo "2671"]
[BlackElo "2536"]
[TimeControl "180+1"]
[EndTime "15:04:30 PDT"]
[Termination "WPWPWP-2015 won by checkmate"]

1. d4 {[%clk 0:03:00.9]} 1... d5 {[%clk 0:02:57.9]} 2. c4 {[%clk 0:03:01.3]}
2... e6 {[%clk 0:02:57.6]} 3. Nc3 {[%clk 0:03:01]} 3... Nf6 {[%clk 0:02:57.6]}
4. cxd5 {[%clk 0:02:56.3]} 4... exd5 {[%clk 0:02:57.4]} 5. Bg5 {[%clk
0:02:54.7]} 5... c6 {[%clk 0:02:57.4]} 6. e3 {[%clk 0:02:55.1]} 6... Be7 {[%clk
0:02:55.9]} 7. Bd3 {[%clk 0:02:54.9]} 7... O-O {[%clk 0:02:55.6]} 8. Qc2 {[%clk
0:02:54.8]} 8... Nbd7 {[%clk 0:02:53.8]} 9. Nf3 {[%clk 0:02:55.1]} 9... Re8
{[%clk 0:02:53.7]} 10. O-O {[%clk 0:02:55.1]} 10... Nf8 {[%clk 0:02:53.6]} 11.
Rab1 {[%clk 0:02:55.1]} 11... a5 {[%clk 0:02:51.8]} 12. a3 {[%clk 0:02:54.9]}
12... Ng6 {[%clk 0:02:48.1]} 13. b4 {[%clk 0:02:53.9]} 13... axb4 {[%clk
0:02:47]} 14. axb4 {[%clk 0:02:54.8]} 14... Bd6 {[%clk 0:02:40.1]} 15. b5 {[%clk
0:02:51.4]} 15... Bg4 {[%clk 0:02:31.1]} 16. Nh4 {[%clk 0:02:34.2]} 16... Nf8
{[%clk 0:02:20.5]} 17. bxc6 {[%clk 0:02:21.9]} 17... bxc6 {[%clk 0:02:20]} 18.
Nf5 {[%clk 0:02:21.1]} 18... Bxf5 {[%clk 0:01:57]} 19. Bxf5 {[%clk 0:02:22]}
19... g6 {[%clk 0:01:56.7]} 20. Bh3 {[%clk 0:02:13.4]} 20... Ne6 {[%clk
0:01:49.5]} 21. Bxe6 {[%clk 0:02:01.6]} 21... Rxe6 {[%clk 0:01:47.5]} 22. Bxf6
{[%clk 0:01:56.5]} 22... Qxf6 {[%clk 0:01:44]} 23. Ne2 {[%clk 0:01:56.4]} 23...
Rc8 {[%clk 0:01:33.1]} 24. Rb7 {[%clk 0:01:54.4]} 24... h5 {[%clk 0:01:25.4]}
25. Ra1 {[%clk 0:01:41.9]} 25... Re7 {[%clk 0:01:17.8]} 26. Raa7 {[%clk
0:01:39.1]} 26... Rxb7 {[%clk 0:01:15.6]} 27. Rxb7 {[%clk 0:01:40]} 27... h4
{[%clk 0:01:11.3]} 28. h3 {[%clk 0:01:25.3]} 28... Kg7 {[%clk 0:01:06.1]} 29.
Nc1 {[%clk 0:01:22.2]} 29... Qf5 {[%clk 0:00:45.3]} 30. Qxf5 {[%clk 0:01:19.3]}
30... gxf5 {[%clk 0:00:45.3]} 31. Nd3 {[%clk 0:01:20]} 31... Kf6 {[%clk
0:00:45]} 32. Kf1 {[%clk 0:01:14.7]} 32... Ke6 {[%clk 0:00:37.2]} 33. Ke2 {[%clk
0:01:14.4]} 33... Ra8 {[%clk 0:00:36.4]} 34. Rb6 {[%clk 0:01:09.5]} 34... Kd7
{[%clk 0:00:35]} 35. Rb7+ {[%clk 0:01:09.1]} 35... Ke6 {[%clk 0:00:34.8]} 36.
Rb3 {[%clk 0:01:01.3]} 36... Ra2+ {[%clk 0:00:33.7]} 37. Kf3 {[%clk 0:01:01.6]}
37... Kd7 {[%clk 0:00:27.8]} 38. Rb2 {[%clk 0:00:54.2]} 38... Ra7 {[%clk
0:00:24.1]} 39. Nf4 {[%clk 0:00:45.9]} 39... Kc7 {[%clk 0:00:22.7]} 40. Nh5
{[%clk 0:00:42]} 40... Ra8 {[%clk 0:00:19.3]} 41. Rb3 {[%clk 0:00:37.2]} 41...
Rh8 {[%clk 0:00:19.1]} 42. Ng7 {[%clk 0:00:36.6]} 42... Rh6 {[%clk 0:00:10.5]}
43. Nxf5 {[%clk 0:00:31.6]} 43... Rf6 {[%clk 0:00:10.1]} 44. Kg4 {[%clk
0:00:18.7]} 44... Rg6+ {[%clk 0:00:10.4]} 45. Kxh4 {[%clk 0:00:19.4]} 45... Rxg2
{[%clk 0:00:10.1]} 46. Rb2 {[%clk 0:00:17.9]} 46... Kd7 {[%clk 0:00:07.5]} 47.
Rb7+ {[%clk 0:00:16.1]} 47... Bc7 {[%clk 0:00:07.1]} 48. Nd6 {[%clk 0:00:16.8]}
48... Kxd6 {[%clk 0:00:06.9]} 49. f3 {[%clk 0:00:13.8]} 49... Bd8+ {[%clk
0:00:04.3]} 50. Kh5 {[%clk 0:00:14]} 50... Rg3 {[%clk 0:00:04.2]} 51. Rxf7
{[%clk 0:00:12.3]} 51... Rxh3+ {[%clk 0:00:04.6]} 52. Kg4 {[%clk 0:00:12.8]}
52... Rh1 {[%clk 0:00:04.7]} 53. e4 {[%clk 0:00:12.1]} 53... Rg1+ {[%clk
0:00:04.4]} 54. Kh3 {[%clk 0:00:12.2]} 54... Ke6 {[%clk 0:00:04.3]} 55. Rf8
{[%clk 0:00:11.8]} 55... Be7 {[%clk 0:00:04.6]} 56. Rc8 {[%clk 0:00:12.1]} 56...
Kd7 {[%clk 0:00:04.5]} 57. Rh8 {[%clk 0:00:11.9]} 57... Rd1 {[%clk 0:00:04.5]}
58. Rh5 {[%clk 0:00:07.8]} 58... Rxd4 {[%clk 0:00:04.2]} 59. exd5 {[%clk
0:00:08.7]} 59... cxd5 {[%clk 0:00:04.3]} 60. Kg3 {[%clk 0:00:08.1]} 60... Ke6
{[%clk 0:00:04.6]} 61. Kf2 {[%clk 0:00:08.5]} 61... Bf6 {[%clk 0:00:04.8]} 62.
Ke3 {[%clk 0:00:08.8]} 62... Ra4 {[%clk 0:00:05.2]} 63. Rh6 {[%clk 0:00:09.2]}
63... Kf5 {[%clk 0:00:04.1]} 64. Rh5+ {[%clk 0:00:09.6]} 64... Bg5+ {[%clk
0:00:04.4]} 65. f4 {[%clk 0:00:09.4]} 65... Rxf4 {[%clk 0:00:04.4]} 66. Kd3
{[%clk 0:00:08.9]} 66... Rg4 {[%clk 0:00:04.4]} 67. Rh3 {[%clk 0:00:08.4]} 67...
Ke6 {[%clk 0:00:04.5]} 68. Rf3 {[%clk 0:00:08.1]} 68... Bf6 {[%clk 0:00:04.9]}
69. Rf1 {[%clk 0:00:08.1]} 69... Be5 {[%clk 0:00:05.2]} 70. Re1 {[%clk
0:00:07.8]} 70... Rg3+ {[%clk 0:00:05.4]} 71. Re3 {[%clk 0:00:08.7]} 71... Rxe3+
{[%clk 0:00:05]} 72. Kxe3 {[%clk 0:00:09.6]} 72... Kd6 {[%clk 0:00:05.5]} 73.
Kd3 {[%clk 0:00:10.5]} 73... Kc5 {[%clk 0:00:06]} 74. Ke2 {[%clk 0:00:11.4]}
74... Bf6 {[%clk 0:00:06.4]} 75. Kd2 {[%clk 0:00:12.3]} 75... Bg7 {[%clk
0:00:07]} 76. Kd1 {[%clk 0:00:13.2]} 76... Kc4 {[%clk 0:00:07.4]} 77. Kd2 {[%clk
0:00:14.1]} 77... Kd4 {[%clk 0:00:07.8]} 78. Kd1 {[%clk 0:00:15]} 78... Kd3
{[%clk 0:00:08.2]} 79. Ke1 {[%clk 0:00:15.5]} 79... d4 {[%clk 0:00:08.7]} 80.
Kd1 {[%clk 0:00:16.4]} 80... Bf8 {[%clk 0:00:09.2]} 81. Ke1 {[%clk 0:00:17.3]}
81... Kc2 {[%clk 0:00:09.5]} 82. Ke2 {[%clk 0:00:17.7]} 82... d3+ {[%clk
0:00:09.9]} 83. Ke1 {[%clk 0:00:18.6]} 83... d2+ {[%clk 0:00:10.4]} 84. Kf2
{[%clk 0:00:19.5]} 84... d1=Q {[%clk 0:00:10.8]} 85. Kg3 {[%clk 0:00:20.4]}
85... Qd2 {[%clk 0:00:11]} 86. Kg4 {[%clk 0:00:20.4]} 86... Qe2+ {[%clk
0:00:11.2]} 87. Kf5 {[%clk 0:00:21.3]} 87... Qf3+ {[%clk 0:00:11.4]} 88. Kg6
{[%clk 0:00:22.2]} 88... Qe4+ {[%clk 0:00:11.5]} 89. Kf7 {[%clk 0:00:23.1]}
89... Qd3 {[%clk 0:00:11.1]} 90. Kg8 {[%clk 0:00:24]} 90... Kc3 {[%clk
0:00:11.1]} 91. Kf7 {[%clk 0:00:24.9]} 91... Kd4 {[%clk 0:00:11.3]} 92. Kg8
{[%clk 0:00:25.8]} 92... Ke5 {[%clk 0:00:11.5]} 93. Kf7 {[%clk 0:00:26.7]} 93...
Kf5 {[%clk 0:00:11.8]} 94. Ke8 {[%clk 0:00:27.6]} 94... Kf6 {[%clk 0:00:10.8]}
95. Kxf8 {[%clk 0:00:27.2]} 95... Qd8# {[%clk 0:00:10.7]} 0-1

[Event "Late-Titled-Tuesday-Blitz-October-10-2023"]
[Site "Chess.com"]
[Date "2023.10.10"]
[Round "6"]
[White "Vegan4future"]
[Black "Djager97"]
[Result "1-0"]
[WhiteElo "2446"]
[BlackElo "2618"]
[TimeControl "180+1"]
[EndTime "15:04:33 PDT"]
[Termination "Vegan4future won on time"]

1. d4 {[%clk 0:03:00.9]} 1... d5 {[%clk 0:02:59.8]} 2. Nc3 {[%clk 0:02:56.3]}
2... Nf6 {[%clk 0:02:58.6]} 3. Bf4 {[%clk 0:02:56.9]} 3... a6 {[%clk 0:02:58.4]}
4. e3 {[%clk 0:02:56.9]} 4... e6 {[%clk 0:02:58.9]} 5. g4 {[%clk 0:02:57.4]}
5... Bb4 {[%clk 0:02:57.1]} 6. Ne2 {[%clk 0:02:55.3]} 6... c5 {[%clk 0:02:44.5]}
7. a3 {[%clk 0:02:48.4]} 7... Bxc3+ {[%clk 0:02:44.4]} 8. Nxc3 {[%clk
0:02:49.3]} 8... Nc6 {[%clk 0:02:39.4]} 9. dxc5 {[%clk 0:02:46.3]} 9... O-O
{[%clk 0:02:24.9]} 10. Bd6 {[%clk 0:02:46]} 10... Re8 {[%clk 0:02:24.3]} 11. g5
{[%clk 0:02:44.9]} 11... Nd7 {[%clk 0:02:18.6]} 12. b4 {[%clk 0:02:40.4]} 12...
b6 {[%clk 0:02:12.4]} 13. cxb6 {[%clk 0:02:22.6]} 13... Nxb6 {[%clk 0:02:11.9]}
14. Bg3 {[%clk 0:02:18.1]} 14... Qxg5 {[%clk 0:01:38.2]} 15. e4 {[%clk 0:01:58]}
15... d4 {[%clk 0:01:26.1]} 16. Ne2 {[%clk 0:01:44.3]} 16... e5 {[%clk
0:01:25.9]} 17. Bg2 {[%clk 0:01:36.3]} 17... Bg4 {[%clk 0:01:22.9]} 18. f3
{[%clk 0:01:34.8]} 18... Be6 {[%clk 0:01:20.7]} 19. O-O {[%clk 0:01:27.3]} 19...
Nc4 {[%clk 0:01:18.2]} 20. Qc1 {[%clk 0:01:27.3]} 20... Ne3 {[%clk 0:01:14.5]}
21. Rf2 {[%clk 0:01:25.4]} 21... Rac8 {[%clk 0:01:08.3]} 22. f4 {[%clk
0:01:17.4]} 22... Qh6 {[%clk 0:00:50]} 23. fxe5 {[%clk 0:01:10.4]} 23... d3
{[%clk 0:00:49.9]} 24. cxd3 {[%clk 0:01:06.2]} 24... Nd4 {[%clk 0:00:46.9]} 25.
Qb2 {[%clk 0:00:52.1]} 25... Nxe2+ {[%clk 0:00:12.1]} 26. Qxe2 {[%clk 0:00:52]}
26... Nxg2 {[%clk 0:00:07.6]} 27. Rxg2 {[%clk 0:00:50.3]} 27... Rc3 {[%clk
0:00:07.4]} 28. Rf1 {[%clk 0:00:43.3]} 28... Bh3 {[%clk 0:00:07.2]} 29. Bf4
{[%clk 0:00:40.7]} 29... Qe6 {[%clk 0:00:07.3]} 30. d4 {[%clk 0:00:24]} 30...
Bxg2 {[%clk 0:00:06.7]} 31. Qxg2 {[%clk 0:00:24.9]} 31... Rxa3 {[%clk
0:00:03.9]} 32. d5 {[%clk 0:00:24.5]} 32... Qb6+ {[%clk 0:00:04.3]} 33. Kh1
{[%clk 0:00:25.1]} 33... Rc8 {[%clk 0:00:03.7]} 34. e6 {[%clk 0:00:24.9]} 34...
fxe6 {[%clk 0:00:04]} 35. Be5 {[%clk 0:00:22.2]} 35... Qb7 {[%clk 0:00:04.5]}
36. dxe6 {[%clk 0:00:20.8]} 36... Rf8 {[%clk 0:00:02.6]} 37. Rc1 {[%clk
0:00:17.7]} 37... Re3 {[%clk 0:00:01.8]} 38. h3 {[%clk 0:00:08.1]} 38... Qxe4
{[%clk 0:00:01.9]} 39. e7 {[%clk 0:00:05.3]} 39... Qxg2+ {[%clk 0:00:01.9]} 40.
Kxg2 {[%clk 0:00:06.2]} 40... Re8 {[%clk 0:00:02.2]} 41. Bd6 {[%clk 0:00:06.2]}
41... R3xe7 {[%clk 0:00:01.8]} 42. Bc5 {[%clk 0:00:07.1]} 42... Re2+ {[%clk
0:00:01.5]} 43. Kf3 {[%clk 0:00:08]} 43... R2e3+ {[%clk 0:00:01.8]} 44. Bxe3
{[%clk 0:00:07.6]} 44... Rd8 {[%clk 0:00:02.2]} 45. Rc5 {[%clk 0:00:07.3]} 45...
Rb8 {[%clk 0:00:02.7]} 46. Ra5 {[%clk 0:00:07.8]} 46... Rxb4 {[%clk 0:00:03]}
47. Rxa6 {[%clk 0:00:08.4]} 47... h6 {[%clk 0:00:03.6]} 48. Ra5 {[%clk
0:00:08.6]} 48... Kh7 {[%clk 0:00:03.7]} 49. Ra2 {[%clk 0:00:08.6]} 49... Rb7
{[%clk 0:00:04.1]} 50. Rh2 {[%clk 0:00:09.5]} 50... Rf7+ {[%clk 0:00:04.6]} 51.
Kg3 {[%clk 0:00:10]} 51... Re7 {[%clk 0:00:04.4]} 52. Bf2 {[%clk 0:00:09.8]}
52... Rf7 {[%clk 0:00:04.8]} 53. Kg2 {[%clk 0:00:10.7]} 53... Re7 {[%clk
0:00:05.1]} 54. h4 {[%clk 0:00:11.2]} 54... Re5 {[%clk 0:00:04.7]} 55. Rh1
{[%clk 0:00:12.1]} 55... h5 {[%clk 0:00:04.6]} 56. Bg3 {[%clk 0:00:12.6]} 56...
Rf5 {[%clk 0:00:05]} 57. Kh3 {[%clk 0:00:13.2]} 57... Rd5 {[%clk 0:00:05.4]} 58.
Re1 {[%clk 0:00:13.8]} 58... Rf5 {[%clk 0:00:05.7]} 59. Re7 {[%clk 0:00:14.3]}
59... Kh6 {[%clk 0:00:02.7]} 60. Ra7 {[%clk 0:00:14]} 60... Kg6 {[%clk
0:00:02.7]} 61. Be1 {[%clk 0:00:12.5]} 61... Kh6 {[%clk 0:00:02.6]} 62. Bd2+
{[%clk 0:00:11.6]} 62... Kg6 {[%clk 0:00:02.8]} 63. Bg5 {[%clk 0:00:12.2]} 63...
Rf3+ {[%clk 0:00:02.6]} 64. Kg2 {[%clk 0:00:11.5]} 64... Rf5 {[%clk 0:00:03.5]}
65. Kg3 {[%clk 0:00:12]} 65... Rd5 {[%clk 0:00:03.8]} 66. Ra3 {[%clk 0:00:11.9]}
66... Rf5 {[%clk 0:00:04.7]} 67. Rb3 {[%clk 0:00:12.2]} 67... Rd5 {[%clk
0:00:05.2]} 68. Rc3 {[%clk 0:00:12.7]} 68... Rf5 {[%clk 0:00:04.5]} 69. Rc6+
{[%clk 0:00:13.3]} 69... Kh7 {[%clk 0:00:04.7]} 70. Rc7 {[%clk 0:00:13.3]} 70...
Kg6 {[%clk 0:00:04.8]} 71. Bd2 {[%clk 0:00:12]} 71... Rd5 {[%clk 0:00:04.8]} 72.
Bc3 {[%clk 0:00:12.3]} 72... Rd3+ {[%clk 0:00:04.9]} 73. Kg2 {[%clk 0:00:11.9]}
73... Kf5 {[%clk 0:00:04.8]} 74. Bxg7 {[%clk 0:00:11.1]} 74... Rd2+ {[%clk
0:00:05.1]} 75. Kf3 {[%clk 0:00:08.9]} 75... Rd3+ {[%clk 0:00:05.4]} 76. Ke2
{[%clk 0:00:09.3]} 76... Rh3 {[%clk 0:00:05.5]} 77. Rc4 {[%clk 0:00:09.5]} 77...
Rg3 {[%clk 0:00:05.3]} 78. Bh6 {[%clk 0:00:09.4]} 78... Rb3 {[%clk 0:00:02.9]}
79. Bg5 {[%clk 0:00:09.6]} 79... Rb2+ {[%clk 0:00:02.9]} 80. Kf3 {[%clk
0:00:09.7]} 80... Rb3+ {[%clk 0:00:03.4]} 81. Kf2 {[%clk 0:00:10]} 81... Rb2+
{[%clk 0:00:02.7]} 82. Ke3 {[%clk 0:00:10.6]} 82... Rb3+ {[%clk 0:00:03.4]} 83.
Kd4 {[%clk 0:00:11.2]} 83... Ra3 {[%clk 0:00:03.2]} 84. Kd5 {[%clk 0:00:11.6]}
84... Ra5+ {[%clk 0:00:03.1]} 85. Rc5 {[%clk 0:00:11.5]} 85... Ra2 {[%clk
0:00:02]} 86. Kd6+ {[%clk 0:00:12]} 86... Kg6 {[%clk 0:00:01.5]} 87. Ke7 {[%clk
0:00:12.5]} 87... Re2+ {[%clk 0:00:01.7]} 88. Kf8 {[%clk 0:00:12.8]} 88... Rf2+
{[%clk 0:00:02]} 89. Kg8 {[%clk 0:00:12.9]} 1-0

[Event "Late-Titled-Tuesday-Blitz-October-10-2023"]
[Site "Chess.com"]
[Date "2023.10.10"]
[Round "6"]
[White "subham777"]
[Black "GaiozNigalidze"]
[Result "0-1"]
[WhiteElo "2526"]
[BlackElo "2728"]
[TimeControl "180+1"]
[EndTime "15:04:34 PDT"]
[Termination "GaiozNigalidze won by resignation"]

1. e4 {[%clk 0:03:00.9]} 1... c5 {[%clk 0:02:59.8]} 2. Nf3 {[%clk 0:03:00.8]}
2... Nc6 {[%clk 0:03:00.1]} 3. Bb5 {[%clk 0:03:01.4]} 3... g6 {[%clk 0:02:59.7]}
4. O-O {[%clk 0:03:00.9]} 4... Bg7 {[%clk 0:02:59.6]} 5. c3 {[%clk 0:03:00.3]}
5... a6 {[%clk 0:02:50.5]} 6. Ba4 {[%clk 0:02:57.4]} 6... b5 {[%clk 0:02:45.6]}
7. Bc2 {[%clk 0:02:57.3]} 7... c4 {[%clk 0:02:44]} 8. a4 {[%clk 0:02:56.1]} 8...
Bb7 {[%clk 0:02:41.8]} 9. Na3 {[%clk 0:02:54.3]} 9... Qb6 {[%clk 0:02:29.7]} 10.
d4 {[%clk 0:02:37.4]} 10... cxd3 {[%clk 0:02:28.6]} 11. Qxd3 {[%clk 0:02:36.9]}
11... b4 {[%clk 0:02:23.6]} 12. Be3 {[%clk 0:02:31.3]} 12... Qc7 {[%clk
0:02:22.7]} 13. Nc4 {[%clk 0:02:30.9]} 13... Nf6 {[%clk 0:02:20.6]} 14. Bb6
{[%clk 0:02:25.7]} 14... Qb8 {[%clk 0:02:09.2]} 15. Rfe1 {[%clk 0:01:58.4]}
15... d6 {[%clk 0:01:47.4]} 16. Rad1 {[%clk 0:01:32.6]} 16... O-O {[%clk
0:01:46.4]} 17. a5 {[%clk 0:01:29]} 17... Qc8 {[%clk 0:01:35.8]} 18. Ne3 {[%clk
0:01:22.5]} 18... Nd7 {[%clk 0:01:25.1]} 19. Bd4 {[%clk 0:01:09]} 19... Nxd4
{[%clk 0:00:53.5]} 20. cxd4 {[%clk 0:01:05.7]} 20... Qd8 {[%clk 0:00:53]} 21.
Ra1 {[%clk 0:01:00.1]} 21... Rb8 {[%clk 0:00:50.1]} 22. Bb3 {[%clk 0:00:58.7]}
22... Nf6 {[%clk 0:00:49.4]} 23. Nc4 {[%clk 0:00:49]} 23... Bxe4 {[%clk
0:00:43.3]} 24. Rxe4 {[%clk 0:00:48.1]} 24... Nxe4 {[%clk 0:00:43.7]} 25. Qxe4
{[%clk 0:00:45.6]} 25... d5 {[%clk 0:00:43.8]} 26. Qe2 {[%clk 0:00:44.1]} 26...
dxc4 {[%clk 0:00:43.8]} 27. Qxc4 {[%clk 0:00:44.7]} 27... Qd6 {[%clk 0:00:41.9]}
28. Re1 {[%clk 0:00:36]} 28... e6 {[%clk 0:00:36.9]} 29. Ne5 {[%clk 0:00:27.4]}
29... Rbc8 {[%clk 0:00:34.3]} 30. Qd3 {[%clk 0:00:25.9]} 30... Bxe5 {[%clk
0:00:28.1]} 31. Rxe5 {[%clk 0:00:25.3]} 31... Rc1+ {[%clk 0:00:28.1]} 32. Bd1
{[%clk 0:00:23.8]} 32... Rd8 {[%clk 0:00:25.8]} 33. Re4 {[%clk 0:00:20.6]} 33...
Qc6 {[%clk 0:00:24.9]} 34. Re1 {[%clk 0:00:17]} 34... Qc4 {[%clk 0:00:19.4]} 35.
Qxc4 {[%clk 0:00:10.3]} 35... Rxc4 {[%clk 0:00:19.3]} 36. Be2 {[%clk 0:00:10.5]}
36... Rc6 {[%clk 0:00:19.5]} 37. Rd1 {[%clk 0:00:07.7]} 37... Rcd6 {[%clk
0:00:16.4]} 38. g3 {[%clk 0:00:06.6]} 38... Rxd4 {[%clk 0:00:14.6]} 39. Rc1
{[%clk 0:00:06.2]} 39... R4d6 {[%clk 0:00:13.6]} 40. Rc4 {[%clk 0:00:04.2]}
40... Rb8 {[%clk 0:00:13.1]} 41. Kg2 {[%clk 0:00:02.3]} 41... Rd5 {[%clk
0:00:13.1]} 42. b3 {[%clk 0:00:01.5]} 42... Rxa5 {[%clk 0:00:13.1]} 43. Rc6
{[%clk 0:00:02.4]} 43... Ra2 {[%clk 0:00:12.7]} 44. Bxa6 {[%clk 0:00:02.5]}
44... Rd2 {[%clk 0:00:11.6]} 45. Bc4 {[%clk 0:00:02.8]} 45... Ra8 {[%clk
0:00:10.5]} 46. Rc7 {[%clk 0:00:02.1]} 46... Raa2 {[%clk 0:00:10]} 47. Kf3
{[%clk 0:00:02.2]} 47... Rxf2+ {[%clk 0:00:09.9]} 48. Ke3 {[%clk 0:00:02.9]}
48... Rxh2 {[%clk 0:00:10.6]} 49. Kf4 {[%clk 0:00:03.1]} 49... Rhf2+ {[%clk
0:00:10.6]} 50. Ke5 {[%clk 0:00:02.8]} 50... Kg7 {[%clk 0:00:11.2]} 51. Kd6
{[%clk 0:00:03]} 51... Rad2+ {[%clk 0:00:10.9]} 52. Ke7 {[%clk 0:00:03.4]} 52...
h5 {[%clk 0:00:11.6]} 53. Ke8 {[%clk 0:00:03.8]} 53... Kh6 {[%clk 0:00:09.6]}
54. Kf8 {[%clk 0:00:02.5]} 54... Kg5 {[%clk 0:00:09.6]} 55. Rc5+ {[%clk
0:00:02.5]} 55... Kg4 {[%clk 0:00:09.7]} 56. Kg7 {[%clk 0:00:03.1]} 56... Kxg3
{[%clk 0:00:09.9]} 57. Rb5 {[%clk 0:00:03.6]} 57... h4 {[%clk 0:00:10]} 58. Rg5+
{[%clk 0:00:03.6]} 58... Kh2 {[%clk 0:00:09.3]} 59. Rg4 {[%clk 0:00:03.3]} 59...
h3 {[%clk 0:00:09.6]} 60. Rg5 {[%clk 0:00:02.2]} 60... Rg2 {[%clk 0:00:09.1]}
61. Re5 {[%clk 0:00:01.6]} 61... Rg3 {[%clk 0:00:09.3]} 62. Ba6 {[%clk
0:00:02.1]} 62... Kg2 {[%clk 0:00:08.8]} 63. Bb7+ {[%clk 0:00:02.6]} 63... Kf2
{[%clk 0:00:09.2]} 64. Re4 {[%clk 0:00:02.7]} 64... h2 {[%clk 0:00:08.9]} 65.
Rh4 {[%clk 0:00:03.4]} 65... Ke3 {[%clk 0:00:08.4]} 66. Kxf7 {[%clk 0:00:01.8]}
66... Rg1 {[%clk 0:00:08.4]} 67. Kxe6 {[%clk 0:00:02.5]} 67... g5 {[%clk
0:00:06.5]} 68. Rh3+ {[%clk 0:00:03]} 68... Kd4 {[%clk 0:00:06.6]} 69. Rh5
{[%clk 0:00:03]} 69... g4 {[%clk 0:00:06.8]} 70. Kd6 {[%clk 0:00:03.6]} 70... g3
{[%clk 0:00:07.1]} 71. Kc6 {[%clk 0:00:04.2]} 71... Kc3 {[%clk 0:00:07.3]} 72.
Kb5 {[%clk 0:00:04.3]} 72... Kxb3 {[%clk 0:00:07.4]} 73. Rh3 {[%clk 0:00:04.7]}
73... Kb2 {[%clk 0:00:07.7]} 74. Rh4 {[%clk 0:00:04.8]} 74... b3 {[%clk
0:00:08.1]} 75. Kb4 {[%clk 0:00:05.2]} 75... Re1 {[%clk 0:00:07.8]} 76. Rh3
{[%clk 0:00:05.2]} 76... Rd4+ {[%clk 0:00:04.5]} 77. Kc5 {[%clk 0:00:05.4]}
77... Rd3 {[%clk 0:00:05.1]} 78. Kc4 {[%clk 0:00:05]} 78... Rc3+ {[%clk
0:00:05.4]} 79. Kb4 {[%clk 0:00:05.1]} 79... g2 {[%clk 0:00:05.5]} 80. Rxh2
{[%clk 0:00:05.4]} 80... Re2 {[%clk 0:00:05]} 81. Bf3 {[%clk 0:00:04.3]} 81...
Rxf3 {[%clk 0:00:04.7]} 82. Rh4 {[%clk 0:00:03.7]} 82... Rfe3 {[%clk 0:00:05.1]}
83. Rh2 {[%clk 0:00:03.7]} 83... Re4+ {[%clk 0:00:05.4]} 84. Kb5 {[%clk
0:00:03.6]} 84... g1=Q {[%clk 0:00:05.6]} 85. Rh6 {[%clk 0:00:03.2]} 85... Qg5+
{[%clk 0:00:05.2]} 86. Ka6 {[%clk 0:00:03.2]} 86... Qxh6+ {[%clk 0:00:05.5]} 87.
Kb7 {[%clk 0:00:04.1]} 87... Re7+ {[%clk 0:00:04.9]} 0-1